Cogmind - Beta 17 @@@ ROGUE MODE // 2026.08.09 @ 00:09:34 Player: Momo Result: Self-destructed Performance ------------- Evolutions (5) 2500 Regions Visited (4) 800 Robots Destroyed (37) 185 Value Destroyed (1345) 1345 Prototype IDs (34) 680 Alien Tech Used (0) 0 Bonus (800) 800 TOTAL SCORE: 6310 Bonus ------- Registered with UFD 300 Met Optimus in HQ 500 Cogmind --------- Core Integrity 638/1000 Matter 300/300 Energy 160/160 System Corruption 0% Temperature Cool (0) Movement Walking (260) Ox2 Location -5/Factory Parts ------- > --- POWER (1) -------- Light Nuclear Core > --- PROPULSION (6) --- Carbon-fiber Leg > --- UTILITY (8) ------ Large Storage Unit Improved Signal Interpreter Surveybot 17 Chip System Shield > --- WEAPON (2) ------- Heavy Laser Ripper (fused) > --- INVENTORY (15) --- Medium Storage Unit Weight Redist. System Structural Scanner Improved Sensor Array Experimental Utility Shielding Gun Armor System Shield Mapping Drone Bay (2/3) Self-contained Transmogrifier Personal Teleporter v0.10 (0/15) Improved Datajack CPS Tube (2) Makeshift Spear Vortex Trap DRS Beacon (Ready) Peak State ------------ > --- POWER ------------ Light Angular Momentum Engine > --- PROPULSION ------- Improved Carbon-fiber Leg Armored Wheel > --- UTILITY ---------- Large Storage Unit Weight Redist. System Improved Terrain Scanner Surveybot 17 Chip Microactuators Improved Actuator Array Experimental Utility Shielding Mapping Drone Bay > --- WEAPON ----------- Ripper Makeshift Spear > --- INVENTORY -------- Medium Storage Unit Structural Scanner Improved Sensor Array Advanced Sensor Array Gun Armor System Shield System Shield Self-contained Transmogrifier Personal Teleporter v0.10 Improved Datajack CPS Tube Vortex Trap DRS Beacon [Rating: 58] Favorites ----------- Power Subdweller Power Source Engine Subdweller Power Source Power Core Light Nuclear Core Propulsion Wheel Leg Carbon-fiber Leg Wheel Wheel Flight Unit Improved Flight Unit Utility Small Storage Unit Device Component Analysis Suite Storage Small Storage Unit Processor A0-MCA's Component Scanner Hackware System Shield Protection Makeshift Light Armor Plating Weapon Ripper Energy Gun Improved Lightning Gun Energy Cannon Powered Cannon Ballistic Gun Light Assault Rifle Launcher Grenade Launcher Slashing Weapon Ripper Piercing Weapon Makeshift Spear Build | -11 -10 -10 -7 -5 ------- Run | Yrd Mat Sub Scr Fac Slots Evolved 10 | . . . . 10 Power . | . . . . . Propulsion 4 | . . . . 4 Utility 6 | . . . . 6 Weapon . | . . . . . Parts Attached 48 | 3 6 13 10 16 Power 7 | . . 4 1 2 Engine 6 | . . 4 1 1 Core 1 | . . . . 1 Reactor . | . . . . . Propulsion 9 | 2 1 2 2 2 Treads . | . . . . . Leg 3 | . . . 1 2 Wheel 5 | 2 . 2 1 . Hover . | . . . . . Flight 1 | . 1 . . . Utility 21 | . 2 3 6 10 Device 10 | . . . 4 6 Storage 2 | . 1 . 1 . Processor 3 | . . . 1 2 Hackware 1 | . . . . 1 Protection 5 | . 1 3 . 1 Artifact . | . . . . . Weapon 11 | 1 3 4 1 2 Energy Gun 3 | . 1 . . 2 Energy Cannon 3 | . 1 2 . . Ballistic Gun 1 | 1 . . . . Ballistic Cannon . | . . . . . Launcher 1 | . 1 . . . Special Weapon . | . . . . . Impact Weapon . | . . . . . Slashing Weapon 2 | . . 2 . . Piercing Weapon 1 | . . . 1 . Special Melee Weapon . | . . . . . Unidentified Prototypes 6 | . 2 1 . 3 Parts Lost 17 | . . 6 . 11 Power 2 | . . 1 . 1 Propulsion 5 | . . 2 . 3 Utility 7 | . . 1 . 6 Weapon 3 | . . 2 . 1 Highest Loss Streak 7 | . . 2 . 7 To Critical Strikes . | . . . . . Average Backups 7 | . 3 6 8 12 Power . | . . . . . Propulsion 1 | . 1 1 1 . Utility 3 | . 1 2 4 7 Weapon 1 | . 1 1 1 . Tool/Special . | . . . . . Unused Backups 21 | . 3 2 9 7 Power . | . . . . . Propulsion 5 | . 1 2 2 . Utility 7 | . . . 4 3 Weapon 5 | . 2 . 3 . Tool/Special 4 | . . . . 4 Average Slot Usage (%) 78 | . 74 81 81 68 Engine 5 | . . 11 1 4 Leg 1 | . . . . 6 Wheel 23 | . 28 24 27 2 Device 6 | . . . 7 24 Storage 11 | . 7 13 12 5 Processor 2 | . . . 4 7 Protection 6 | . 10 13 1 1 Energy Cannon 3 | . . 9 . . Launcher 1 | . 13 1 . . Slashing Weapon 11 | . . 6 19 5 Piercing Weapon 2 | . . . 5 1 Peak Build Rating 58 | 3 9 26 34 58 Average Rating 22 | 2 6 18 20 51 On Entrance 11 | . 3 9 19 28 Avg Prop Armor Cover (%) 11 | . 5 5 28 8 Naked Turns . | . . . . . Heaviest Build 47 | 1 15 26 36 47 Greatest Support 39 | 20 20 30 22 39 Greatest Overweight (x) 3 | . 1 2 2 3 Average Overweight (x) . | . . . . 1 Largest Inventory Capacity 15 | 5 8 8 15 15 Average Capacity 10 | 5 6 8 11 15 Most Carried 15 | 1 6 8 15 15 Average Carried 8 | . 3 6 9 14 Final Capacity 15 | 5 8 8 15 15 Final Carried 15 | 1 5 7 15 15 Class Distribution -------------------- 72% | Mutant 19% | Derelict-Mutant 3% | Scavenger-Assassin Dominant Class ---------------- Mutant | -10/Materials Mutant | -10/Subcaves Mutant | -7/Scraptown Scavenger-Assassin | -5/Factory Resources | -11 -10 -10 -7 -5 ----------- Run | Yrd Mat Sub Scr Fac Matter Collected 1100 | 152 91 446 266 145 Remotely . | . . . . . Salvage Created 1300 | . 134 659 . 507 Parts 80 | . 9 44 . 27 Haulers Intercepted 2 | . 1 . . 1 Recyclers Shooed 1 | . 1 . . . Parts Field Recycled . | . . . . . Retrieved Matter . | . . . . . Parts Self-Destructed 3 | . . 3 . . Prevented . | . . . . . Parts Restored . | . . . . . Kills | -11 -10 -10 -7 -5 ------- Run | Yrd Mat Sub Scr Fac Combat Hostiles Destroyed 32 | . 6 17 . 9 Melee 6 | . . 2 . 4 Guns 5 | . . . . 5 Cannons 11 | . . 11 . . AOE 9 | . 6 3 . . Classes Destroyed 8 | . 5 2 . 1 Hauler 2 | . 1 . . 1 Recycler 1 | . 1 . . . Operator 2 | . 1 . . 1 Swarmer 6 | . 3 . . 3 Grunt 8 | . 3 . . 5 Hunter 1 | . . . . 1 Artisan 1 | . . 1 . . Subdweller 17 | . . 17 . . Best Kill Streak 3 | . 3 3 . 3 Combat Bots Only 3 | . 3 3 . 3 Max Kills in Single Turn 3 | . 3 1 . 1 Gunslinging . | . . . . . Exploded 3 | . 3 1 . . Melee 1 | . . 1 . 1 Uniques/NPCs Destroyed . | . . . . . Combat | -11 -10 -10 -7 -5 -------- Run | Yrd Mat Sub Scr Fac Hostile Shots Fired 206 | . 16 68 . 122 Missed 61 | . 4 18 . 39 Hits 145 | . 12 50 . 83 Projectile 145 | . 12 50 . 83 Critical Strikes 1 | . . . . 1 Damage Taken 2577 | . 147 1142 5 1283 Core 572 | . 33 177 . 362 Absorbed by Shields . | . . . . . Redirected to Shielding 79 | . . . . 79 Ignored by Resistances 10 | . . 10 . . Regen/Repaired (Parts) 72 | . . . 72 . Core Remaining (%) 58 | 100 . . 16 . Volleys Fired 84 | . 17 48 . 19 Largest 2 | . 2 2 . 1 Hottest 136 | . 86 136 . 69 Shots Fired 99 | . 19 61 . 19 Gun 24 | . 5 . . 19 Cannon 53 | . . 53 . . Launcher 22 | . 14 8 . . Special . | . . . . . Kinetic . | . . . . . Thermal 59 | . 5 53 . 1 Explosive 22 | . 14 8 . . Electromagnetic 18 | . . . . 18 Robot Hit Streak 30 | . 3 23 . 30 Robot Miss Streak 1 | . 1 1 . 1 Penetration Max . | . . . . . Secondary Targets . | . . . . . Shots Hit Robots 107 | . 6 59 . 42 Core Hits 56 | . 15 23 . 18 Critical Kills 1 | . . 1 . . Critical Parts Destroyed . | . . . . . Critical Strikes 5 | . 1 1 . 3 Burn 1 | . 1 . . . Meltdown 1 | . . 1 . . Sever 2 | . . . . 2 Impale 1 | . . . . 1 Melee Attacks 63 | . . 18 2 43 Impact . | . . . . . Slashing 43 | . . 18 2 23 Piercing 20 | . . . . 20 Sneak Attacks 3 | . . 1 . 2 Combat Hostiles . | . . . . . Follow-up Attacks 5 | . . . . 5 Damage Inflicted 4592 | . 782 2331 . 1479 Guns 415 | . 59 . . 356 Cannons 1502 | . . 1502 . . Explosions 1370 | . 723 500 . 147 Melee 1305 | . . 329 . 976 Ramming . | . . . . . Kinetic . | . . . . . Thermal 1708 | . 59 1502 . 147 Explosive 1223 | . 723 500 . . Electromagnetic 356 | . . . . 356 Impact . | . . . . . Slashing 940 | . . 329 . 611 Piercing 365 | . . . . 365 Highest Corruption 4 | . 4 4 4 . Average Corruption 3 | . 3 4 4 . Corruption Purged . | . . . . . Corruption Blocked . | . . . . . Effects 75 | . 7 24 44 . Message Errors 20 | . 2 5 13 . Matter Fused 25 | . 4 8 13 . Heat Flow Errors 10 | . . 4 6 . Energy Discharges 4 | . . 1 3 . Parts Rejected 1 | . 1 . . . Parts Fused 1 | . . . 1 . Data Loss (minor) 8 | . . 2 6 . Data Loss (major) 3 | . . 1 2 . Alerts 2 | . . 2 . . Weapon Failures 1 | . . 1 . . Overload Shots . | . . . . . Overflow Damage 153 | . 60 56 . 37 Projectiles 11 | . . 11 . . Explosions 67 | . 60 . . 7 Melee 75 | . . 45 . 30 Knockbacks . | . . . . . Impact . | . . . . . Kinetic . | . . . . . Secondary . | . . . . . Self-Inflicted Damage . | . . . . . Shots . | . . . . . Rammed . | . . . . . Targets Rammed . | . . . . . Kicked . | . . . . . Crushed . | . . . . . Highest Temperature 224 | . 60 220 224 20 Average Temperature 67 | . 27 71 91 9 Received Heat Transfer 627 | . 72 294 . 261 Effects 1 | . . 1 . . Energy Bleed 1 | . . 1 . . Siege Activations . | . . . . . Martial Activations . | . . . . . Shielding Activations . | . . . . . Robots Disrupted . | . . . . . Combat Hostiles . | . . . . . Robots Corrupted . | . . . . . Combat Hostiles . | . . . . . Parts Fried . | . . . . . Impact Corruptions . | . . . . . Robots Melted 1 | . . 1 . . Combat Hostiles 1 | . . 1 . . Parts Melted 5 | . 1 4 . . Heat Transferred 1321 | . 222 999 . 100 Parts Sabotaged . | . . . . . Parts Stolen . | . . . . . Parts Stripped . | . . . . . Power Chain Reactions . | . . . . . Alert | -11 -10 -10 -7 -5 ------- Run | Yrd Mat Sub Scr Fac Maximum Alert Level . | . . . . . Low Security (%) 100 | 100 100 . . 100 Level 1 . | . . . . . Level 2 . | . . . . . Level 3 . | . . . . . Level 4 . | . . . . . Level 5 . | . . . . . High Security . | . . . . . Max Security . | . . . . . Peak Influence 154 | . 96 . . 154 Initial . | . . . . . Average 60 | . 49 . . 71 Influence Increases 598 | . 200 . . 398 Destroy 0b10 Robot/C 300 | . 120 . . 180 Destroy 0b10 Robot/NC 25 | . 15 . . 10 Destroy Leader 54 | . 22 . . 32 Disable Machine 90 | . 15 . . 75 Destroy Structure 84 | . 28 . . 56 Lose Combat Pursuer 45 | . . . . 45 Influence Decreases 486 | . 167 33 . 286 Entered New Map 17 | . . 17 . . Time Decay 367 | . 167 16 . 184 Lost Part 102 | . . . . 102 Squads Dispatched 4 | . . . . 4 Investigation 1 | . . . . 1 Extermination 1 | . . . . 1 Reinforcement 2 | . . . . 2 Assault . | . . . . . Garrison . | . . . . . Intercept . | . . . . . Searches Triggered . | . . . . . Construction Impeded . | . . . . . Haulers Reinforced 1 | . . . . 1 Active Scanning Responses . | . . . . . Cargo Convoy Interrupts . | . . . . . Stealth | -11 -10 -10 -7 -5 --------- Run | Yrd Mat Sub Scr Fac Distress Signals . | . . . . . Communications Jammed . | . . . . . Distress Signals . | . . . . . Times Spotted 52 | . 11 19 3 19 Peak Tracking Total 5 | . 3 2 3 5 Tactical Retreats 5 | . . 2 . 3 Traps | -11 -10 -10 -7 -5 ------- Run | Yrd Mat Sub Scr Fac Traps Triggered 4 | . 3 1 . . Indirectly . | . . . . . Trap Hack Attempts . | . . . . . Triggered . | . . . . . Disarmed . | . . . . . Reprogrammed . | . . . . . Reused 2 | . . 2 . . Traps Extracted . | . . . . . Installed 2 | . . 2 . . Triggered 1 | . . 1 . . Most Traps Carried 2 | . . 2 1 1 Machines | -11 -10 -10 -7 -5 ---------- Run | Yrd Mat Sub Scr Fac Machines Disabled 8 | . 1 1 1 5 Max in Single Turn 4 | . 1 1 1 4 Machines Repaired . | . . . . . Machines Dismantled . | . . . . . Machines Sabotaged . | . . . . . Overloaded Fab Kills . | . . . . . Hacking | -11 -10 -10 -7 -5 --------- Run | Yrd Mat Sub Scr Fac Machines Accessed 11 | . 1 2 7 1 Terminals 1 | . 1 . . . Fabricators . | . . . . . Repair Stations . | . . . . . Recycling Units 1 | . . . . 1 Scanalyzers . | . . . . . Garrison Access . | . . . . . Total Hacks 68 | . 1 13 51 3 Successful 64 | . . 13 51 . Failed 4 | . 1 . . 3 Catastrophic 1 | . 1 . . . Database Lockouts . | . . . . . Manual 3 | . . . . 3 Terminals 1 | . 1 . . . Fabricators . | . . . . . Repair Stations . | . . . . . Recycling Units 3 | . . . . 3 Scanalyzers . | . . . . . Garrison Access . | . . . . . Terminal Hacks 64 | . . 13 51 . Record 62 | . . 12 50 . Proto ID Catalog 2 | . . 1 1 . Fabricator Hacks . | . . . . . Repair Station Hacks . | . . . . . Recycling Unit Hacks . | . . . . . Scanalyzer . | . . . . . Garrison Access Hacks . | . . . . . Unauthorized Hacks . | . . . . . Terminals . | . . . . . Fabricators . | . . . . . Repair Stations . | . . . . . Recycling Units . | . . . . . Scanalyzers . | . . . . . Garrison Access . | . . . . . Data Cores Recovered 1 | . 1 . . . Used . | . . . . . Hacking Detections 2 | . 1 . . 1 Full Trace Events 1 | . . . . 1 Feedback Events . | . . . . . Feedback Blocked . | . . . . . Robot Schematics Acquired . | . . . . . Robots Built . | . . . . . Authchips . | . . . . . Time . | . . . . . Total Robot Build Rating . | . . . . . Part Schematics Acquired . | . . . . . Parts Built . | . . . . . Authchips . | . . . . . Time . | . . . . . Total Part Build Rating . | . . . . . Part Studies Acquired . | . . . . . Parts Repaired . | . . . . . Time . | . . . . . Parts Recycled . | . . . . . Recycled Matter . | . . . . . Retrieved Matter . | . . . . . Retrieved Components . | . . . . . Parts Scanalyzed . | . . . . . Part Schematics Acquired . | . . . . . Parts Damaged . | . . . . . Bothacking | -11 -10 -10 -7 -5 ------------ Run | Yrd Mat Sub Scr Fac Used RIF Installer . | . . . . . Robots Hacked . | . . . . . Non-combat . | . . . . . Combat . | . . . . . Robot Hacks Applied . | . . . . . Relay Couplers Released . | . . . . . Fabnet Peak Effective % . | . . . . . Robots Rewired . | . . . . . Allies Hacked . | . . . . . Hacks Repelled . | . . . . . Allies | -11 -10 -10 -7 -5 -------- Run | Yrd Mat Sub Scr Fac Total Allies . | . . . . . Largest Group . | . . . . . Highest-Rated Group . | . . . . . Highest-Rated Ally . | . . . . . Initial UFD Resources 38 | . . . . 38 Total Orders 2 | . . . . 2 EXPLORE 1 | . . . . 1 RETURN 1 | . . . . 1 Ally Attacks . | . . . . . Total Damage . | . . . . . Kills . | . . . . . Allies Corrupted . | . . . . . Allies Melted 2 | . . . 2 . Intel | -11 -10 -10 -7 -5 ------- Run | Yrd Mat Sub Scr Fac Active Infowar (turns) 623 | . . . 246 377 Sensors 140 | . . . . 140 Terrain 377 | . . . . 377 Structural 246 | . . . 246 . Robot Analysis Total . | . . . . . Derelict Logs Recovered 2 | . . 2 . . Drone Launches 3 | . . . . 3 Drone Recoveries 2 | . . . . 2 Exploration | -11 -10 -10 -7 -5 ------------- Run | Yrd Mat Sub Scr Fac Turns Passed 4355 | 30 400 1499 1873 553 Spaces Moved 4020 | 34 383 1325 2023 255 Core 155 | 8 . . 135 12 Treads . | . . . . . Legs 112 | . . . 1 111 Wheels 3753 | 26 383 1325 1887 132 Hover . | . . . . . Flight . | . . . . . Fastest Speed 50 | 50 80 80 50 120 Average Speed 93 | 72 85 92 89 154 Slowest Speed 260 | 80 95 110 190 260 Overloaded Moves . | . . . . . Propulsion Burnouts . | . . . . . Robots Hopped . | . . . . . Potential Cave-ins . | . . . . . Cave-ins Triggered . | . . . . . Exploration Rate (%) 51 | 3 70 81 93 11 Regions Visited 4 Branch Regions 2 Pre-discovered Areas 5 | . . . 5 . Known Exits Taken 1 | . . . 1 . Unknown Exits Taken 3 | 1 1 1 . . Scrap Searched 20 | . . 16 4 . Spaces Dug 2 | . . . 1 1 Terrain Destroyed 104 | . 41 35 1 27 Melee 2 | . . . 1 1 Projectile 1 | . . 1 . . AOE 101 | . 41 34 . 26 Terrain Rammed . | . . . . . Walls Destroyed . | . . . . . Machines Disabled . | . . . . . Actions | -11 -10 -10 -7 -5 --------- Run | Yrd Mat Sub Scr Fac Total 4439 | 37 435 1522 2090 355 Wait 128 | . 13 91 4 20 Move 4016 | 33 382 1324 2022 255 Hop . | . . . . . Pick Up 52 | 1 9 11 27 4 Fast Attach 32 | 3 4 9 6 10 Attach 13 | . 3 3 2 5 Detach 5 | . 1 2 1 1 Swap 9 | . 1 3 2 3 Drop 43 | . 5 12 24 2 Fire 84 | . 17 48 . 19 Melee 55 | . . 17 2 36 Ram . | . . . . . Kick . | . . . . . Crush . | . . . . . Escape Stasis . | . . . . . Rewire . | . . . . . Trap 2 | . . 2 . . Miscellaneous . | . . . . . Route ------- -11/Scrapyard -10/Materials (discovered 3 exits: [*Mat] / [*Min] / *Sub) -10/Subcaves (discovered 3 exits: [*Mat x2] / *Scr) -7/Scraptown (discovered 2 exits: *Fac x2) -5/Factory (discovered 5 exits: Fac x4 / Ext) History --------- Turn | Location | Event 2 | -11/Scrapyard | Met Revision 17 18 | -11/Scrapyard | Discovered new exit (range 16) 31 | -11/Scrapyard | Entered Materials 123 | -10/Materials | Discovered new exit (range 3) 316 | -10/Materials | Build established: Mutant 385 | -10/Materials | Discovered new exit (range 9) 397 | -10/Materials | Discovered new exit (range 11) 431 | -10/Materials | Entered Subcaves 432 | -10/Subcaves | Approached by a straggling Scientist 446 | -10/Subcaves | Learned Materials emergency access door positions 453 | -10/Subcaves | Learned Materials trap positions 492 | -10/Subcaves | Discovered new exit (range 15) 609 | -10/Subcaves | Ambushed by Subdwellers from Twisted Machinery 711 | -10/Subcaves | A Subdweller sparked back to life 711 | -10/Subcaves | A Subdweller sparked back to life 744 | -10/Subcaves | Found Prototype Energy Cannon 744 | -10/Subcaves | Identified Powered Cannon 745 | -10/Subcaves | Attached Powered Cannon, gained temporary slot: Power 791 | -10/Subcaves | Discovered new exit (range 14) 902 | -10/Subcaves | Shifting Twisted Machinery released Sub. Optics 938 | -10/Subcaves | Shifting Twisted Machinery released Flamer 956 | -10/Subcaves | Shifting Twisted Machinery released Piercing Trap 985 | -10/Subcaves | Shifting Twisted Machinery released Ripper 1108 | -10/Subcaves | Disturbed a concealed Subdweller 1120 | -10/Subcaves | Core integrity fell below 50% 1310 | -10/Subcaves | Ambushed by Subdwellers from Twisted Machinery 1326 | -10/Subcaves | Ambushed by Subdweller buried in earth 1449 | -10/Subcaves | Visited 4L-MR0's lab 1462 | -10/Subcaves | Found Gun Armor 1467 | -10/Subcaves | Found Prototype Device 1572 | -10/Subcaves | Visited Clippyterm 1575 | -10/Subcaves | Learned Factory emergency access door positions 1575 | -10/Subcaves | Learned Factory stockpile data 1662 | -10/Subcaves | Ambushed by angry Subdweller bent on revenge 1766 | -10/Subcaves | Core integrity fell below 20% 1819 | -10/Subcaves | Ambushed by Subdwellers from Twisted Machinery 1930 | -10/Subcaves | Entered Scraptown 2105 | -7/Scraptown | Identified Sfc. Transmogrifier 2188 | -7/Scraptown | Heard Great Nut preacher, LISTEN AND RECITE! 2198 | -7/Scraptown | Visited Comm Corps 2232 | -7/Scraptown | Visited Spacefarers 2274 | -7/Scraptown | Visited CR-KLE's Repair Center 2280 | -7/Scraptown | CR-KLE repaired 5 parts 2294 | -7/Scraptown | Visited SPCMW 2323 | -7/Scraptown | Visited CPS Storage 2409 | -7/Scraptown | Build established: Derelict-Mutant 2486 | -7/Scraptown | Discovered new exit (range 11) 2575 | -7/Scraptown | Visited Symbiants 2593 | -7/Scraptown | Visited Fellowship of the Rings 2628 | -7/Scraptown | Visited UFD Registry 2628 | -7/Scraptown | Registered with UFD as "Wrenchbucket" 2711 | -7/Scraptown | Visited Cartography Club 2755 | -7/Scraptown | Found Surveybot 17 Chip 2780 | -7/Scraptown | Learned location of Zion (-7) 2780 | -7/Scraptown | Learned location of Archives (-5) 2780 | -7/Scraptown | Learned location of Armory (-4) 2780 | -7/Scraptown | Learned location of Quarantine (-3) 2780 | -7/Scraptown | Learned 12 Materials zone layouts 2780 | -7/Scraptown | Learned 12 Factory zone layouts 2780 | -7/Scraptown | Learned 4 Access zone layouts 2780 | -7/Scraptown | Learned 20 Upper Caves zone layouts 2780 | -7/Scraptown | Learned 8 Proximity Caves zone layouts 2780 | -7/Scraptown | Learned Materials emergency access door positions 2780 | -7/Scraptown | Learned location of 1 exit from Factory 2780 | -7/Scraptown | Learned location of 1 exit from Research 2780 | -7/Scraptown | Learned location of 3 exits from Lower Caves 2780 | -7/Scraptown | Identified exit to Factory 2816 | -7/Scraptown | Visited Derelict Rescue Squad 2831 | -7/Scraptown | Found DRS Beacon 2852 | -7/Scraptown | Visited Science Guys 2891 | -7/Scraptown | Visited Junk Repository 2927 | -7/Scraptown | Visited Scrap Suit Storage 2955 | -7/Scraptown | Visited Junk Repository 3027 | -7/Scraptown | Build established: Mutant 3122 | -7/Scraptown | Visited LU-1G1's Boring Crew 3183 | -7/Scraptown | Visited A0-MCA Data Center 3189 | -7/Scraptown | Given a C- rating by A0-MCA 3191 | -7/Scraptown | Found A0-MCA's Component Scanner 3649 | -7/Scraptown | Met Optimus 3649 | -7/Scraptown | Accepted into 0bPrime 3731 | -7/Scraptown | Civil war broke out across Scraptown 3763 | -7/Scraptown | Found Personal Teleporter v0.10 3803 | -7/Scraptown | Entered Factory 3803 | -5/Factory | Evolved 10 slots: Propulsion x4, Utility x6 3804 | -5/Factory | Identified exit to Factory 3805 | -5/Factory | Identified exit to Extension 3817 | -5/Factory | Lost 7 allies 4356 | -5/Factory | Self-destructed Last Messages --------------- 04296_ Acquired 21 matter. 04296_ K-01 Serf collects debris. 04300_ Acquired Lgt. Nuclear Core. 04300_ Imp. Terrain Scanner destroyed. 04301_ K-01 Serf collects debris. 04310_ Critical hit (Burn: +37). 04311_ ALERT: Potential suspicious activity detected, Programmers report to Factory Zone 4F. 04315_ Acquired Hvy. Laser. 04317_ K-01 Serf collects debris. 04317_ Microactuators destroyed. 04319_ G-50 Soldier destroyed. 04322_ Acquired 14 matter. 04325_ Carbon-fiber Leg destroyed. 04326_ K-01 Serf collects debris. 04335_ S-27 Virus IFF system glitched. 04335_ G-50 Soldier destroyed. 04339_ K-01 Serf collects debris. 04351_ Adv. Weight Redist. System destroyed. Map ----- +----------------------------------------------------+ | | | | | | | | | | | | | | | ###########?##########################???????????? | | #########?### # ???????????? | | ###########?? # ???????????? | | ############? # ???????????? | | ############# """" """" # """ """ ???????????? | | ############# """" """" # """ """ ???????????? | | ############# """" """" # """ """ ???????????? | | ############# """" """" # ???????????? | | ### """" """" # """ ???????????? | | "" ### """" """" #"" """ ???????????? | | "" ### """" """" #"T """ ???????????? | | R ### #"" ???????????? | | "" "" ### # ???????????? | | "" "" ##############+#######+#######?????????? | | """ ###### ??????????? | | """ ###### ###???????????? | | """ ###### #?????????????? | | ###### #?????????????? | | ###### k *%@ #?????????????? | | ###### k[ ###s############????????????? | | ##+#+########### ^ [#[ ![ ##???????????? | | ## ^^^=%+% ##???????????? | | ## *#= """"""""" ##???????????? | | !! # + ???????????? | | ![ % # """"""""" ##???????????? | | #! ##???????????? | | ###########+###############+###???????????? | | # ######## ## ???????????? | | # ######## ## ???????????? | | """ # """"""" """""" ######## ## ???????????? | | """ # """"""" """""" ######## + ???????????? | | """ / """"""" """""" ########### ???????????? | | # """"""" """""" #######???# ???????????? | | """ # ####??????# ???????????? | | """ # ####??????# ???????????? | | """ #####################?#??????# ???????????? | | ###################??????????##???????????? | | #?#############?###???????????????????????? | | !! #?###############????????????##???????????? | | !! ##?#?#?###???????????????????# ???????????? | | ##########??######################### ???????????? | | # | #?? / # # ???????????? | | # #?? #### # # ???????????? | +----------------------------------------------------+ Best States ------------- Heat Dissipation 40 Energy Generation 18 Energy Capacity 290 Matter Stores 300 Matter Capacity 300 Sight Range 16 Robot Scan Range 16 Terrain Scan Range 16 Terrain Scan Density 1210 Additional Mass Support 9 Armor Coverage 225 Resistance: KI 10 Utility Shielding 90 Melee Speed Boost 20 Evasion (%) 50 Defensive Hacking 10 Item Schematics ----------------- None Robot Schematics ------------------ None Fabricated ------------ Nothing Repaired ---------- Nothing Studied --------- None Alien Tech Used ----------------- None Achievements -------------- Uncivil War Wiki Contributor You Again Challenges ------------ None Game ------ Seed SpliceHardlightFlightbrick Manual? 0 Play Time 00:55:32 Cumulative 490.5 hours Start 2026.08.06 @ 23:34:44 End 2026.08.09 @ 00:09:34 Sessions 5 Manual Loads 0 Difficulty Rogue Special Mode None Game No. 253 Rogue 249 Adventurer 0 Explorer 4 Win Type - Total 27 Types 9/1/2/6/2/2/3/1/1/0 Lore% 71 Gallery% 75 Achievement% 63 Wizard Run 0 Options --------- Layout 1 ASCII 0 Keyboard 0 Movement Mouse Keybinds 0 Fullscreen 1 Font 24/Smallcaps Map View 50x35 Zoom Use 0% Tactical HUD 1 Map Filters NONE Filters NONE Steam 1 RUN: bda1f215-de57-4860-bae9-47be5e8f1739